{"text_format":"1","workbook":"xlsx","n_sheets":2,"sheets":["Nachweis","Tabelle2"],"not_rendered":{"charts":0,"images":0,"macros":1,"external_links":0,"defined_names":2,"comments":0,"pivot_tables":0},"unopened":[],"bounds":{"document_bytes":16777216,"sheet_cells":100000,"rows_first":2000,"rows_last":500,"rows_between":2000,"halvings":0,"cell_chars":16384,"cell_head_chars":4096},"cells_cut":0,"cells_raw":0,"read":"whole","date_system":"1900"}

{"sheet":"Nachweis","index":0,"n_rows":23,"n_cols":11,"rows_kept":23,"cut":false,"hidden":false,"merged":[[4,9,5,9],[4,10,5,10],[1,4,1,7],[17,2,17,7],[22,0,22,7],[4,8,5,8],[4,7,5,7],[4,5,5,6],[4,2,4,3],[4,1,5,1],[4,0,5,0],[4,4,5,4],[20,2,20,3],[1,2,1,3],[2,4,2,5]]}
["Antrag auf Auszahlung - Nachweis festbetragsfinanzierte Vorhaben"]
["Ident-Nr.: ",null,null,null,"Nr. des Teilvorhabens aus dem Bewilligungsbescheid:"]
[null,null,null,null,"                                     (Je Teilvorhaben bitte einen Nachweis ausfüllen.)"]
[]
["Position gemäß Bewil-ligungs-bescheid","Förder-gegen-stand","Durchführungszeitraum",null,"Art des Vorhabens / Vorhabentyp","tatsächlicher Umfang",null,"Festbetrag je Einheit","beantragte Zuwendung","durch Behörde nicht anerkannte Menge","durch Behörde vom Kostensatz nicht anerkannt"]
[null,null,"Beginn","Ende"]
[null,null,null,null,null,"Menge","Einheit","EUR/ Einheit","EUR"]
[null,"F.",null,null,"Gehölzsanierung Steinrücken - Auslichten",null,{"$f":"IF(ISBLANK(E8),\"\",VLOOKUP(E8,Tabelle2!$B$3:$D$37,3,))","v":"m²"},{"$f":"IF(ISBLANK(E8),\"\",VLOOKUP(E8,Tabelle2!$B$3:$D$37,2,))","v":2.09},{"$f":"IF(ISBLANK(F8),0,F8*H8)","v":0}]
[null,null,null,null,null,null,{"$f":"IF(ISBLANK(E9),\"\",VLOOKUP(E9,Tabelle2!$B$3:$D$37,3,))","v":""},{"$f":"IF(ISBLANK(E9),\"\",VLOOKUP(E9,Tabelle2!$B$3:$D$37,2,))","v":""},{"$f":"IF(ISBLANK(F9),0,F9*H9)","v":0}]
[null,null,null,null,null,null,{"$f":"IF(ISBLANK(E10),\"\",VLOOKUP(E10,Tabelle2!$B$3:$D$37,3,))","v":""},{"$f":"IF(ISBLANK(E10),\"\",VLOOKUP(E10,Tabelle2!$B$3:$D$37,2,))","v":""},0]
[null,null,null,null,null,null,{"$f":"IF(ISBLANK(E11),\"\",VLOOKUP(E11,Tabelle2!$B$3:$D$37,3,))","v":""},{"$f":"IF(ISBLANK(E11),\"\",VLOOKUP(E11,Tabelle2!$B$3:$D$37,2,))","v":""},0]
[null,null,null,null,null,null,{"$f":"IF(ISBLANK(E12),\"\",VLOOKUP(E12,Tabelle2!$B$3:$D$37,3,))","v":""},{"$f":"IF(ISBLANK(E12),\"\",VLOOKUP(E12,Tabelle2!$B$3:$D$37,2,))","v":""},0]
[null,null,null,null,null,null,{"$f":"IF(ISBLANK(E13),\"\",VLOOKUP(E13,Tabelle2!$B$3:$D$37,3,))","v":""},{"$f":"IF(ISBLANK(E13),\"\",VLOOKUP(E13,Tabelle2!$B$3:$D$37,2,))","v":""},0]
[null,null,null,null,null,null,{"$f":"IF(ISBLANK(E14),\"\",VLOOKUP(E14,Tabelle2!$B$3:$D$37,3,))","v":""},{"$f":"IF(ISBLANK(E14),\"\",VLOOKUP(E14,Tabelle2!$B$3:$D$37,2,))","v":""},0]
[null,null,null,null,null,null,{"$f":"IF(ISBLANK(E15),\"\",VLOOKUP(E15,Tabelle2!$B$3:$D$37,3,))","v":""},{"$f":"IF(ISBLANK(E15),\"\",VLOOKUP(E15,Tabelle2!$B$3:$D$37,2,))","v":""},0]
[null,null,null,null,null,null,{"$f":"IF(ISBLANK(E16),\"\",VLOOKUP(E16,Tabelle2!$B$3:$D$37,3,))","v":""},{"$f":"IF(ISBLANK(E16),\"\",VLOOKUP(E16,Tabelle2!$B$3:$D$37,2,))","v":""},0]
[null,null,null,null,null,null,{"$f":"IF(ISBLANK(E17),\"\",VLOOKUP(E17,Tabelle2!$B$3:$D$37,3,))","v":""},{"$f":"IF(ISBLANK(E17),\"\",VLOOKUP(E17,Tabelle2!$B$3:$D$37,2,))","v":""},{"$f":"IF(ISBLANK(F17),0,F17*H17)","v":0}]
[null,null,"Summe beantragte Zuwendung (Übernahme in den Auszahlungsantrag)",null,null,null,null,null,{"$f":"SUM(I8:I16)","v":0}]
[]
[null,null,"Datum:",null,null,"Unterschrift Begünstigter:"]
[]
[]
["Bemerkung der Behörde:"]

{"sheet":"Tabelle2","index":1,"n_rows":40,"n_cols":4,"rows_kept":40,"cut":false,"hidden":true,"merged":[]}
["Förderge-genstand",null,"F."]
[]
["F.","Kopfbaumschnitt normaler Aufwand",58,"Stk."]
["F.","Kopfbaumschnitt hoher Aufwand ",146,"Stk."]
["F.","Gehölzsanierung - Auslichten",1.81,"m²"]
["F.","Gehölzsanierung - Auf den Stock Setzen",3.61,"m²"]
["F.","Gehölzsanierung Steinrücken - Auslichten",2.09,"m²"]
["F.","Gehölzsanierung Steinrücken - Auf den Stock Setzen ",4.17,"m²"]
["F.","Anlage von linienhaften Gehölzen - gebietsheimisch",6.96,"m²"]
["F.","Anlage von linienhaften Gehölzen - standortgerecht",5.82,"m²"]
["F.","Anlage von flächenhaften Gehölzen - gebietsheimisch",4.28,"m²"]
["F.","Anlage von flächenhaften Gehölzen - standortgerecht",3.42,"m²"]
["F.","Pflanzung Einzelbäume, Baumgruppen und Baumreihen - gebietsheimisch",78,"Stk."]
["F.","Pflanzung Einzelbäume, Baumgruppen und Baumreihen - standortgerecht",67,"Stk."]
[]
[]
[]
[]
[]
[]
[]
[]
[]
[]
[]
[]
[]
[]
[]
[]
[]
[]
[]
[]
[]
[]
[]
[]
[]
[null,null,{"$f":"IF(ISBLANK(B40),\"\",VLOOKUP(B40,B34:D37,2,))","v":""}]